Cogmind - Beta 14 @@@ ROGUE MODE // 2024.08.09 @ 20:12:05 Player: ILikeVoltron Result: Destroyed by Y-45 Defender with Beam Rifle Performance ------------- Evolutions (1) 500 Regions Visited (2) 400 Robots Destroyed (18) 90 Value Destroyed (207) 207 Prototype IDs (0) 0 Alien Tech Used (0) 0 Bonus (0) 0 TOTAL SCORE: 1197 Bonus ------- None Cogmind --------- Core Integrity 0/400 Matter 275/300 Energy 230/250 System Corruption 0% Temperature Cool (9) Movement Rolling (110) Ox2 Location -9/Materials Parts ------- > --- POWER (1) -------- Ion Engine > --- PROPULSION (4) --- Wheel > --- UTILITY (2) ------ Large Storage Unit Signal Interpreter > --- WEAPON (2) ------- Particle Gun > --- INVENTORY (15) --- VTOL Module VTOL Module Small Storage Unit Compact Matter Pod (36) Compact Matter Pod (0) Improved Terrain Scanner Seismic Detector Small Laser Particle Gun Particle Gun Mining Laser Peak State ------------ > --- POWER ------------ Ion Engine > --- PROPULSION ------- VTOL Module VTOL Module VTOL Module VTOL Module > --- UTILITY ---------- Large Storage Unit Improved Terrain Scanner > --- WEAPON ----------- Particle Gun Particle Gun > --- INVENTORY -------- Light Ion Engine Wheel Hover Unit VTOL Module VTOL Module Small Storage Unit Small Matter Pod Small Matter Pod Seismic Detector Shield Generator Medium Laser Small Laser Particle Gun Particle Gun Mining Laser [Rating: 19] Favorites ----------- Power Ion Engine Engine Ion Engine Propulsion Aluminum Leg Treads Light Treads Leg Aluminum Leg Wheel Wheel Flight Unit VTOL Module Utility Large Storage Unit Device Improved Terrain Scanner Storage Large Storage Unit Processor Signal Interpreter Weapon Medium Laser Energy Gun Medium Laser Ballistic Gun Light Assault Rifle Special Weapon Mining Laser Impact Weapon Heavy Mace Build | -11 -10 -9 ------- Run | Yrd Mat Mat Slots Evolved 2 | . . 2 Power . | . . . Propulsion 2 | . . 2 Utility . | . . . Weapon . | . . . Parts Attached 27 | 2 6 19 Power 2 | . . 2 Engine 2 | . . 2 Core . | . . . Reactor . | . . . Propulsion 8 | . . 8 Treads 2 | . . 2 Leg . | . . . Wheel 1 | . . 1 Hover . | . . . Flight 5 | . . 5 Utility 9 | 2 3 4 Device 7 | 2 2 3 Storage 1 | . 1 . Processor 1 | . . 1 Hackware . | . . . Protection . | . . . Artifact . | . . . Weapon 8 | . 3 5 Energy Gun 5 | . 2 3 Energy Cannon . | . . . Ballistic Gun 1 | . . 1 Ballistic Cannon . | . . . Launcher . | . . . Special Weapon 1 | . 1 . Impact Weapon 1 | . . 1 Slashing Weapon . | . . . Piercing Weapon . | . . . Special Melee Weapon . | . . . Unidentified Prototypes . | . . . Parts Lost 8 | . . 8 Power 1 | . . 1 Propulsion 5 | . . 5 Utility . | . . . Weapon 2 | . . 2 Highest Loss Streak 6 | . . 6 To Critical Strikes . | . . . Average Slot Usage (%) 95 | . 100 89 Engine 12 | . 14 11 Treads 1 | . . 2 Leg 16 | . 28 2 Flight 14 | . . 30 Device 10 | . 14 6 Storage 12 | . 14 11 Processor 2 | . . 4 Energy Gun 16 | . 21 11 Ballistic Gun 1 | . . 3 Special Weapon 3 | . 6 . Impact Weapon 2 | . . 4 Peak Build Rating 19 | 9 12 19 Average Rating 11 | 7 9 14 On Entrance 9 | 6 9 12 Naked Turns . | . . . Heaviest Build 32 | 14 32 32 Greatest Support 40 | 20 20 40 Greatest Overweight (x) 8 | . 1 8 Average Overweight (x) . | . . 1 Largest Inventory Capacity 15 | 8 15 15 Average Capacity 13 | 8 14 15 Most Carried 15 | 8 14 15 Average Carried 11 | 7 10 14 Final Capacity 15 | 8 15 15 Final Carried 14 | 8 14 11 Class Distribution -------------------- 100% | Mutant Dominant Class ---------------- Mutant | -10/Materials Mutant | -9/Materials Resources | -11 -10 -9 ----------- Run | Yrd Mat Mat Matter Collected 515 | 279 60 176 Remotely . | . . . Salvage Created 449 | 162 41 246 Parts 32 | 11 2 19 Haulers Intercepted . | . . . Recyclers Shooed 1 | . . 1 Parts Field Recycled . | . . . Retrieved Matter . | . . . Parts Self-Destructed . | . . . Prevented . | . . . Kills | -11 -10 -9 ------- Run | Yrd Mat Mat Combat Hostiles Destroyed 7 | . 1 6 Guns 5 | . 1 4 Classes Destroyed 7 | 3 1 3 Worker 7 | 2 1 4 Tunneler 2 | 2 . . Recycler 1 | 1 . . Watcher 1 | . . 1 Swarmer 4 | . . 4 Grunt 1 | . 1 . Sentry 2 | . . 2 Best Kill Streak 5 | 2 1 5 Combat Bots Only 3 | . 1 3 Max Kills in Single Turn 1 | 1 1 1 Gunslinging . | . . . Exploded . | . . . Melee . | . . . Uniques/NPCs Destroyed . | . . . Combat | -11 -10 -9 -------- Run | Yrd Mat Mat Hostile Shots Fired 125 | . 5 120 Missed 40 | . 1 39 Damage Taken 1067 | . 45 1022 Core 409 | . . 409 Absorbed by Shields 18 | . . 18 Core Remaining (%) 100 | 100 100 . Volleys Fired 59 | 11 16 32 Largest 2 | 2 2 2 Hottest 130 | 90 130 90 Shots Fired 92 | 22 22 48 Gun 83 | 22 13 48 Cannon . | . . . Launcher . | . . . Special 9 | . 9 . Kinetic 15 | . . 15 Thermal 77 | 22 22 33 Explosive . | . . . Electromagnetic . | . . . Robot Hit Streak 7 | 7 4 4 Robot Miss Streak 6 | 2 2 6 Penetration Max . | . . . Secondary Targets . | . . . Shots Hit Robots 64 | 16 6 42 Core Hits 19 | 6 3 10 Critical Kills . | . . . Critical Parts Destroyed 2 | . . 2 Critical Strikes 4 | . . 4 Burn 1 | . . 1 Smash 3 | . . 3 Melee Attacks 26 | . . 26 Impact 26 | . . 26 Slashing . | . . . Piercing . | . . . Sneak Attacks 5 | . . 5 Combat Hostiles . | . . . Follow-up Attacks . | . . . Damage Inflicted 1393 | 195 91 1107 Guns 527 | 195 91 241 Cannons . | . . . Explosions . | . . . Melee 866 | . . 866 Ramming . | . . . Kinetic 63 | . . 63 Thermal 464 | 195 91 178 Explosive . | . . . Electromagnetic . | . . . Impact 866 | . . 866 Slashing . | . . . Piercing . | . . . Highest Corruption . | . . . Average Corruption . | . . . Corruption Purged . | . . . Corruption Blocked . | . . . Overload Shots . | . . . Overflow Damage 149 | . . 149 Projectiles . | . . . Explosions . | . . . Melee 149 | . . 149 Knockbacks 2 | . . 2 Impact 2 | . . 2 Kinetic . | . . . Secondary . | . . . Self-Inflicted Damage . | . . . Shots . | . . . Rammed . | . . . Targets Rammed . | . . . Kicked . | . . . Crushed . | . . . Highest Temperature 300 | 120 300 271 Average Temperature 81 | 50 72 106 Received Heat Transfer 294 | . 24 270 Effects 1 | . 1 . Energy Bleed 1 | . 1 . Siege Activations . | . . . Robots Corrupted 4 | . . 4 Combat Hostiles 2 | . . 2 Parts Fried 3 | . . 3 Impact Corruptions 8 | . . 8 Robots Melted . | . . . Combat Hostiles . | . . . Parts Melted 3 | 1 . 2 Heat Transferred 1288 | 521 222 545 Parts Sabotaged . | . . . Parts Stolen . | . . . Parts Stripped . | . . . Power Chain Reactions . | . . . Alert | -11 -10 -9 ------- Run | Yrd Mat Mat Peak Influence 257 | 25 71 257 Initial 16 | . 16 8 Average 67 | 13 24 139 Maximum Alert Level 1 | . . 1 Low Security (%) 85 | 100 100 62 Level 1 14 | . . 37 Level 2 . | . . . Level 3 . | . . . Level 4 . | . . . Level 5 . | . . . High Security . | . . . Max Security . | . . . Squads Dispatched 2 | . 2 . Investigation 1 | . 1 . Extermination . | . . . Reinforcement 1 | . 1 . Assault . | . . . Garrison . | . . . Intercept . | . . . Searches Triggered . | . . . Construction Impeded . | . . . Haulers Reinforced . | . . . Active Scanning Responses . | . . . Cargo Convoy Interrupts . | . . . Stealth | -11 -10 -9 --------- Run | Yrd Mat Mat Distress Signals 3 | . 1 2 Communications Jammed . | . . . Distress Signals . | . . . Times Spotted 19 | . 3 16 Peak Tracking Total 5 | . 2 5 Tactical Retreats 3 | . 1 2 Traps | -11 -10 -9 ------- Run | Yrd Mat Mat Traps Triggered 1 | . 1 . Indirectly . | . . . Trap Hack Attempts . | . . . Triggered . | . . . Disarmed . | . . . Reprogrammed . | . . . Reused . | . . . Traps Extracted . | . . . Installed . | . . . Triggered . | . . . Machines | -11 -10 -9 ---------- Run | Yrd Mat Mat Machines Disabled . | . . . Max in Single Turn . | . . . Machines Repaired . | . . . Machines Dismantled . | . . . Machines Sabotaged . | . . . Overloaded Fab Kills . | . . . Hacking | -11 -10 -9 --------- Run | Yrd Mat Mat Machines Accessed 3 | . 2 1 Terminals 2 | . 1 1 Fabricators . | . . . Repair Stations . | . . . Recycling Units 1 | . 1 . Scanalyzers . | . . . Garrison Access . | . . . Total Hacks 6 | . 5 1 Successful 3 | . 2 1 Failed 3 | . 3 . Catastrophic . | . . . Database Lockouts . | . . . Manual 4 | . 3 1 Terminals 4 | . 3 1 Fabricators . | . . . Repair Stations . | . . . Recycling Units 2 | . 2 . Scanalyzers . | . . . Garrison Access . | . . . Terminal Hacks . | . . . Fabricator Hacks . | . . . Repair Station Hacks . | . . . Recycling Unit Hacks 1 | . 1 . Retrieve Matter 1 | . 1 . Scanalyzer . | . . . Garrison Access Hacks . | . . . Unauthorized Hacks 2 | . 1 1 Terminals 2 | . 1 1 Botnet 1 | . 1 . Disrupt 1 | . . 1 Fabricators . | . . . Repair Stations . | . . . Recycling Units . | . . . Scanalyzers . | . . . Garrison Access . | . . . Data Cores Recovered . | . . . Used . | . . . Hacking Detections 3 | . 2 1 Full Trace Events . | . . . Feedback Events . | . . . Feedback Blocked . | . . . Robot Schematics Acquired . | . . . Robots Built . | . . . Authchips . | . . . Time . | . . . Total Robot Build Rating . | . . . Part Schematics Acquired . | . . . Parts Built . | . . . Authchips . | . . . Time . | . . . Total Part Build Rating . | . . . Parts Repaired . | . . . Time . | . . . Parts Recycled . | . . . Recycled Matter . | . . . Retrieved Matter . | . . . Retrieved Components . | . . . Parts Scanalyzed . | . . . Part Schematics Acquired . | . . . Parts Damaged . | . . . Bothacking | -11 -10 -9 ------------ Run | Yrd Mat Mat Used RIF Installer . | . . . Robots Hacked . | . . . Non-combat . | . . . Combat . | . . . Robot Hacks Applied . | . . . Relay Couplers Released . | . . . Fabnet Peak Effective % . | . . . Robots Rewired . | . . . Allies Hacked . | . . . Hacks Repelled . | . . . Allies | -11 -10 -9 -------- Run | Yrd Mat Mat Total Allies . | . . . Largest Group . | . . . Highest-Rated Group . | . . . Highest-Rated Ally . | . . . Total Orders . | . . . Ally Attacks . | . . . Total Damage . | . . . Kills . | . . . Allies Corrupted . | . . . Allies Melted . | . . . Intel | -11 -10 -9 ------- Run | Yrd Mat Mat Robot Analysis Total . | . . . Derelict Logs Recovered . | . . . Drone Launches . | . . . Drone Recoveries . | . . . Exploration | -11 -10 -9 ------------- Run | Yrd Mat Mat Turns Passed 978 | 170 429 379 Spaces Moved 393 | 80 172 141 Core 2 | . . 2 Treads 2 | . . 2 Legs 271 | 80 172 19 Wheels 1 | . . 1 Hover . | . . . Flight 117 | . . 117 Fastest Speed 106 | 120 120 106 Average Speed 151 | 120 183 129 Slowest Speed 515 | 120 190 515 Overloaded Moves . | . . . Propulsion Burnouts . | . . . Robots Hopped . | . . . Cave-ins Triggered . | . . . Exploration Rate (%) 15 | 6 21 19 Regions Visited 2 Branch Regions . Pre-discovered Areas . | . . . Known Exits Taken . | . . . Unknown Exits Taken 2 | 1 1 . Scrap Searched . | . . . Spaces Dug 9 | . 9 . Terrain Destroyed 9 | . 9 . Melee . | . . . Projectile 9 | . 9 . AOE . | . . . Terrain Rammed . | . . . Walls Destroyed . | . . . Machines Disabled . | . . . Actions | -11 -10 -9 --------- Run | Yrd Mat Mat Total 628 | 134 244 250 Wait 84 | 26 45 13 Move 391 | 79 171 141 Hop . | . . . Pick Up 21 | 9 5 7 Fast Attach 8 | 1 . 7 Attach 7 | . . 7 Detach 1 | . . 1 Swap 12 | 1 6 5 Drop 19 | 7 1 11 Fire 59 | 11 16 32 Melee 26 | . . 26 Ram . | . . . Kick . | . . . Crush . | . . . Escape Stasis . | . . . Rewire . | . . . Trap . | . . . Miscellaneous . | . . . Route ------- -11/Scrapyard -10/Materials -9/Materials History --------- Turn | Location | Event 5 | -11/Scrapyard | Discovered new exit (range 3) 171 | -11/Scrapyard | Entered Materials 314 | -10/Materials | Build established: Mutant 550 | -10/Materials | Discovered new exit (range 6) 600 | -10/Materials | Entered another Materials area 600 | -9/Materials | Evolved 2 slots: Propulsion x2 935 | -9/Materials | Core integrity fell below 50% 961 | -9/Materials | Lost 6 parts (1p4n1w) 965 | -9/Materials | Core integrity fell below 20% 979 | -9/Materials | Destroyed by Y-45 Defender with Beam Rifle Last Messages --------------- 00931_ Y-45 Defender system corrupted by crushing effect. 00933_ Destroyed Heat Sink. 00933_ Y-45 Defender system corrupted by crushing effect. 00934_ Y-45 Defender system terminally corrupted. 00934_ Beam Rifle fried. 00934_ Imp. Ion Engine fried. 00941_ Destroyed Heat Sink. 00941_ Y-45 Defender system corrupted by crushing effect. 00941_ Scanalyzer disabled. 00953_ Y-45 Defender suffers critical hit (Smash). 00953_ Destroyed Imp. Ion Engine. 00953_ Y-45 Defender system corrupted by crushing effect. 00954_ Y-45 Defender system terminally corrupted. 00954_ Heat Sink fried. 00956_ Y-45 Defender suffers critical hit (Smash). 00963_ R-06 Scavenger collects Corrupted Lgt. Treads. 00968_ R-06 Scavenger collects Terrain Scan Processor. 00973_ R-06 Scavenger collects Corrupted Lgt. Treads. 00976_ R-06 Scavenger collects Corrupted Beam Rifle. 00976_ Hvy. Mace destroyed. Map ----- +----------------------------------------------------+ | ????????????????????????????????????????????? | | ????????????????????????????????????????????? | | ????????????????????????????????????????????? | | ????????????????????????????????????????????? | | ????????????????????????????????????????????? | | ????????????????????????????????????????????? | | ????????????????????????????????????????????? | | ????????????????????????????????????????????? | | ????????????????????????????????????????????? | | ????????????????????????????????????????????? | | ????????????????????????????????????????????? | | ????????????????????? ????????????????????? | | ????????????????????+ ????????????????????? | | ????????????????????# ????????????????????? | | ????????????????????# ????????????????????? | | ????????????????????# #???????????????????? | | ???????????????????## ##??????????????????? | | ???????????????????# #??????????????????? | | ???????????????????# ??????????????????? | | ???????????????????+ ???????????????????? | | ???????????????????# ???????????????????? | | ???????????????????# ???????????????????? | | ????????????????????# ###########?????????? | | ????????????????????#%! # #?????????? | | ?????????????????#### %# rS #?????????? | | ??????????# + %Y@""" #?????????? | | ?????????????? """ # #[ "" #?????????? | | ????????????????????#a # """ #?????????? | | ????????????????????# # """???????????? | | ????????????????????# # """???????????? | | ????????????????????# # ???????????? | | ???? ?????????????# ##########??????????? | | ???# #????????????# #???????????????????? | | ???# #????????????# #???????????????????? | | ##?# #??########### #???????????????????? | | #?# #??# """ """ + #???????????????????? | | #?# #??# """ """ # #???????????????????? | | #?# #??# """ """ # #???????????????????? | | #?# #??# # #???????????????????? | | #?# #??# # #???????????????????? | | #?# #??# # #???????????????????? | | #?# #??# # #???????????????????? | | #?# #??# # #???????????????????? | | ##?# #??#######+### ####????????????????? | | #### ########= ????????????? | | = != ????????????? | | ########! T ????????????? | | #??????# """?????????????? | | ########??#???# "???????????????? | | ############### "???????????????? | +----------------------------------------------------+ Best States ------------- Heat Dissipation 28 Energy Generation 10 Energy Capacity 250 Matter Stores 300 Matter Capacity 300 Sight Range 16 Terrain Scan Range 16 Terrain Scan Density 10 Evasion (%) 55 Item Schematics ----------------- None Robot Schematics ------------------ None Fabricated ------------ Nothing Alien Tech Used ----------------- None Achievements -------------- None Challenges ------------ None Game ------ Seed MetaPulseMeganuke Manual? 0 Play Time 00:16:20 Cumulative 141.4 hours Start 2024.08.09 @ 19:54:52 End 2024.08.09 @ 20:12:05 Sessions 1 Manual Loads 0 Difficulty Rogue Special Mode None Game No. 246 Rogue 242 Adventurer 0 Explorer 4 Win Type - Total 0 Types 0/0/0/0/0/0/0/0/0 Lore% 18 Gallery% 44 Achievement% 34 Wizard Run 0 Options --------- Layout 1 ASCII 0 Keyboard 1 Movement Arrows Keybinds 0 Fullscreen 1 Font 32/Proggy Map View 130x35 Zoom Use 0% Tactical HUD 1 Map Filters NONE Filters NONE Steam 0 RUN: 31204540-32a8-4a1f-9e12-a8fb2aa15b46